fUST/lending_fUST_20241230
["ID","MTS","AMOUNT","RATE_DAILY","PERIOD"]
[347162913,1735533040390,-500.0,0.0001387,2]
[347162914,1735533040400,-500.0,0.0001387,2]
[347162915,1735533040410,-504.66936235,0.0001387,2]
[347162916,1735533040420,-500.0,0.0001387,2]
[347162917,1735533040430,-500.0,0.0001387,2]
[347162918,1735533040439,-500.0,0.0001387,2]
[347162919,1735533040449,-500.0,0.0001387,2]
[347162920,1735533040458,-1107.5649309,0.0001387,2]
[347162921,1735533040467,-500.0,0.0001387,2]
[347162922,1735533040476,-501.99128868,0.0001387,2]
[347162923,1735533040486,-504.02993081,0.0001387,2]
[347162924,1735533040495,-224.13735021,0.00013871,2]
[347162925,1735533040505,-502.76397825,0.00013871,2]
[347162926,1735533040514,-502.83661736,0.00013871,2]
[347162927,1735533040524,-500.0,0.00013871,2]
[347162928,1735533040533,-501.64201709,0.00013871,2]
[347162929,1735533040543,-400.0,0.00013973,2]
[347162930,1735533040555,-500.0,0.00014142,2]
[347162931,1735533040565,-500.0,0.00014143,2]
[347162932,1735533040574,-500.0,0.00014143,2]
[347162933,1735533040583,-500.0,0.00014143,2]
[347162934,1735533040676,-500.0,0.00014143,2]
[347162935,1735533040686,-1112.81732426,0.00014143,2]
[347162936,1735533040695,-1044.97,0.00014143,2]
[347162937,1735533040704,-500.0,0.00014143,2]
[347162938,1735533040715,-500.0,0.00014143,2]
[347162939,1735533040724,-500.0,0.00014143,2]
[347162940,1735533040734,-500.0,0.00014144,2]
[347162941,1735533040743,-500.0,0.00014144,2]
[347162942,1735533040752,-500.0,0.00014144,2]
[347162943,1735533040762,-214.01587728,0.00014144,2]
[347162944,1735533040772,-304.77641913,0.00014144,2]
[347162945,1735533040782,-266.03646334,0.00014144,2]
[347162946,1735533040792,-500.0,0.00014144,2]
[347162947,1735533040803,-503.712558,0.00014144,2]
[347162948,1735533040812,-500.0,0.00014144,2]
[347162949,1735533040822,-501.87190635,0.00014144,2]
[347162950,1735533040832,-444.04,0.00014416,2]
[347162951,1735533040841,-634.53,0.00014417,2]
[347162952,1735533040851,-1044.97,0.00014417,2]
[347162953,1735533040860,-500.0,0.00014417,2]
[347162954,1735533040870,-500.0,0.00014417,2]
[347162955,1735533040879,-500.0,0.00014417,2]
[347162956,1735533040889,-500.0,0.00014418,2]
[347162957,1735533040899,-500.0,0.00014418,2]
[347162958,1735533040909,-321.69169354,0.00014418,2]
[347162959,1735533040919,-500.0,0.00014418,2]
[347162960,1735533040928,-500.0,0.00014418,2]
[347162961,1735533040938,-646.95421612,0.00014418,2]
[347162962,1735533040948,-420.0,0.00014644,2]
[347162963,1735533040957,-1044.97,0.00014691,2]
[347162964,1735533040967,-500.0,0.00014691,2]
[347162965,1735533040976,-513.29143358,0.00014691,2]
[347162966,1735533040986,-500.0,0.00014691,2]
[347162967,1735533040995,-500.0,0.00014692,2]
[347162968,1735533041004,-589.62350081,0.00014692,2]
[347162969,1735533041013,-500.0,0.00014692,2]
[347162970,1735533041022,-1044.97,0.00014965,2]
[347162971,1735533041031,-500.0,0.00014965,2]
[347162972,1735533041040,-240.785196,0.00014965,2]
[347162973,1735533041049,-427.68,0.00014966,2]
[347162974,1735533041059,-500.0,0.00014966,2]
[347162975,1735533041068,-1044.97,0.00015239,2]
[347162976,1735533041078,-500.0,0.00015239,2]
[347162977,1735533041087,-1044.97,0.00015513,2]
[347162978,1735533041097,-500.0,0.00015513,2]
[347162979,1735533041106,-1044.97,0.00015787,2]
[347162980,1735533041115,-500.0,0.00015787,2]
[347162981,1735533041125,-587.0,0.00016054,2]
[347162982,1735533041134,-1044.97,0.00016061,2]
[347162983,1735533041144,-500.0,0.00016061,2]
[347162984,1735533041153,-1044.97,0.00016335,2]
[347162985,1735533041165,-500.0,0.00016335,2]
[347162986,1735533041175,-1936.37038541,0.0001643,2]
[347162987,1735533041184,-1312.75182514,0.0001643,2]
[347162988,1735533041194,-1044.97,0.00016609,2]
[347162989,1735533041203,-500.0,0.00016609,2]
[347162990,1735533041214,-1044.97,0.00016883,2]
[347162991,1735533041224,-171.39113605,0.00016883,2]
[347162992,1735533041233,-1044.97,0.00017157,2]
[347162993,1735533041243,-500.0,0.00017431,2]
[347162994,1735533041253,-1044.97,0.00017431,2]
[347162995,1735533041262,-823.0,0.00017599,2]
[347162996,1735533041271,-326.636,0.00017656,2]
[347162997,1735533041281,-1044.97,0.00017705,2]
[347162998,1735533041290,-1044.97,0.00017979,2]
[347162999,1735533041300,-500.0,0.00017999,2]
[347163000,1735533041310,-5164.75756255,0.00018,2]
[347163001,1735533041320,-5164.75756255,0.00018,2]
[347163002,1735533041330,-5164.75756255,0.00018,2]
[347163003,1735533041339,-1044.97,0.00018253,2]
[347163004,1735533041348,-1044.97,0.00018527,2]
[347163005,1735533041357,-1044.97,0.00018801,2]
[347163006,1735533041366,-454.29372777,0.000189,2]
[347163007,1735533041375,-473.155,0.00019,2]
[347163008,1735533041384,-1044.97,0.00019075,2]
[347163009,1735533041394,-1152.0,0.00019293,2]
[347163010,1735533041403,-1044.97,0.00019349,2]
[347163011,1735533041413,-581.3113188,0.00019562,2]
[347163012,1735533041422,-1044.97,0.00019623,2]
[347163013,1735533041432,-892.9273495,0.00019799,2]
[347163014,1735533041442,-162.51,0.00019818,2]
[347163015,1735533041452,-330.999,0.00019824,2]
[347163016,1735533041462,-150.333,0.00019824,2]
[347163017,1735533041471,-153.0,0.00019836,2]
[347163018,1735533041481,-153.5340186,0.00019836,2]
[347163019,1735533041490,-214.3641981,0.00019836,2]
[347163020,1735533041500,-153.5340186,0.00019836,2]
[347163021,1735533041509,-153.0,0.00019836,2]
[347163022,1735533041518,-153.0,0.00019836,2]
[347163023,1735533041528,-214.3641981,0.00019836,2]
[347163024,1735533041537,-214.3641981,0.00019836,2]
[347163025,1735533041546,-153.5340186,0.00019836,2]
[347163026,1735533041556,-214.3641981,0.00019836,2]
[347163027,1735533041566,-153.0,0.00019836,2]
[347163028,1735533041575,-153.0,0.00019836,2]
[347163029,1735533041585,-153.5340186,0.00019836,2]
[347163030,1735533041594,-153.5340186,0.00019836,2]
[347163031,1735533041603,-214.3641981,0.00019836,2]
[347163032,1735533041612,-153.0,0.00019836,2]
[347163033,1735533041622,-396.127585,0.00019836,2]
[347163034,1735533041631,-229.6887584,0.00019836,2]
[347163035,1735533041640,-153.0,0.00019836,2]
[347163036,1735533041650,-153.0,0.00019836,2]
[347163037,1735533041659,-153.0,0.00019836,2]
[347163038,1735533041668,-153.0,0.00019836,2]
[347163039,1735533041677,-266.9382312,0.00019836,2]
[347163040,1735533041687,-155.4773248,0.00019836,2]
[347163041,1735533041696,-153.0,0.00019836,2]
[347163042,1735533041706,-153.0,0.00019836,2]
[347163043,1735533041715,-153.0,0.00019836,2]
[347163044,1735533041725,-1045.07266091,0.00019896,2]
[347163045,1735533041734,-32539.2812875,0.000199,2]
[347163046,1735533041743,-160.0,0.00019999,2]
[347163047,1735533041753,-181.46326873,0.00019999,2]
[347163048,1735533041762,-500.0,0.00019999,2]
[347163049,1735533041771,-500.0,0.00019999,2]
[347163050,1735533041781,-500.0,0.00019999,2]
[347163051,1735533041791,-500.0,0.00019999,2]
[347163052,1735533041803,-500.0,0.00019999,2]
[347163053,1735533041815,-500.0,0.00019999,2]
[347163054,1735533041825,-500.0,0.00019999,2]
[347163055,1735533041835,-500.0,0.00019999,2]
[347163056,1735533041844,-500.0,0.00019999,2]
[347163057,1735533041853,-500.0,0.00019999,2]
[347163058,1735533041862,-500.0,0.00019999,2]
[347163059,1735533041871,-484.23339973,0.00019999,2]
[347163060,1735533041881,-11844.83906473,0.0002,2]
[347163061,1735533041890,-168986.21237527,0.0002,2]
[347163062,1735533041900,-207053.86048495,0.0002,4]
[347163063,1735533041928,-493.99077948,0.0002,4]
[347163070,1735533043033,-300.0,0.00013458,2]
[347163071,1735533043043,-6437.17177447,0.0002,4]
[347163289,1735533121329,-579.46,0.00013594,2]
[347163290,1735533121356,-500.0,0.00013594,2]
[347163291,1735533121384,-337.88091647,0.00013594,2]
[347163292,1735533121415,-263.69738623,0.00013594,2]
[347163293,1735533121440,-500.0,0.00013594,2]
[347163294,1735533121466,-500.0,0.00013594,2]
[347163295,1735533121492,-153.64353024,0.00013594,2]
[347163296,1735533121523,-264.04646976,0.00013594,2]
[347163297,1735533121548,-500.0,0.00013594,2]
[347163298,1735533121573,-131.97573987,0.00013594,2]
[347163299,1735533121622,-494.65192691,0.00013594,2]
[347163300,1735533121648,-463.48296178,0.00013594,2]
[347163301,1735533121673,-459.20602778,0.00013595,2]
[347163302,1735533296533,-4675.69781376,0.00013458,2]
[347163304,1735533913646,15648.0,0.00025,120]
[347163305,1735534112955,50000.0,0.00025,120]
[347163306,1735534163077,14435.0,0.000171,90]
[347163307,1735534206427,-504.1962798,0.00011828,2]
[347163308,1735534206453,-300.0,0.00011973,2]
[347163309,1735534206478,-643.25386759,0.00011974,2]
[347163326,1735534232138,-504.1962798,0.0001171,2]
[347163327,1735534232148,-4739.75434614,0.00011974,2]
[347163328,1735534232193,-1443.18987805,0.00011974,2]
[347163329,1735534232249,-509.6526251,0.00011974,2]
[347163364,1735534237989,-1511.89765099,0.00011974,2]
[347163366,1735534238000,-8166.80617213,0.00011974,2]
[347163368,1735534238010,-504.1962798,0.00012068,2]
[347163370,1735534238020,-161.6296555,0.00012595,2]
[347163372,1735534238031,-162.1200628,0.000129,2]
[347163374,1735534238040,-639.84455298,0.00012998,2]
[347163376,1735534238049,-376.71213338,0.00012998,2]
[347163378,1735534238059,-434.53261941,0.00012998,2]
[347163380,1735534238069,-779.98,0.00012998,2]
[347163382,1735534238078,-500.0,0.00012998,2]
[347163384,1735534238087,-500.0,0.00012998,2]
[347163386,1735534238096,-262.38,0.00012998,2]
[347163388,1735534238106,-500.0,0.00012998,2]
[347163390,1735534238115,-420.04,0.00012998,2]
[347163392,1735534238124,-742.71,0.00012998,2]
[347163394,1735534238133,-500.0,0.00012998,2]
[347163396,1735534238143,-500.0,0.00012999,2]
[347163398,1735534238152,-500.0,0.00012999,2]
[347163400,1735534238161,-500.0,0.00012999,2]
[347163402,1735534238170,-500.0,0.00012999,2]
[347163404,1735534238179,-500.0,0.00012999,2]
[347163417,1735534238283,-2448.43,0.00012999,2]
[347163419,1735534238292,-215.30662505,0.00012999,2]
[347163421,1735534238301,-500.0,0.00012999,2]
[347163423,1735534238310,-500.0,0.00012999,2]
[347163425,1735534238319,-152.72,0.00012999,2]
[347163427,1735534238328,-500.0,0.00012999,2]
[347163429,1735534238337,-627.72666879,0.00012999,2]
[347163430,1735534238347,-500.0,0.00012999,2]
[347163432,1735534238356,-500.0,0.00012999,2]
[347163434,1735534238365,-500.0,0.00012999,2]
[347163436,1735534238375,-326.19673019,0.00012999,2]
[347163438,1735534238384,-500.0,0.00012999,2]
[347163440,1735534238393,-500.0,0.00012999,2]
[347163442,1735534238403,-500.0,0.00012999,2]
[347163444,1735534238411,-500.0,0.00012999,2]
[347163446,1735534238420,-1418.98,0.00012999,2]
[347163448,1735534238430,-666.5,0.00012999,2]
[347163450,1735534238439,-500.0,0.00012999,2]
[347163452,1735534238449,-500.0,0.00012999,2]
[347163456,1735534238469,-500.0,0.00012999,2]
[347163458,1735534238479,-500.0,0.00012999,2]
[347163460,1735534238489,-500.0,0.00012999,2]
[347163462,1735534238499,-500.0,0.00012999,2]
[347163464,1735534238508,-500.0,0.00012999,2]
[347163466,1735534238518,-500.0,0.00012999,2]
[347163468,1735534238528,-777.23,0.00012999,2]
[347163470,1735534238538,-500.0,0.00012999,2]
[347163472,1735534238547,-192.89140752,0.00012999,2]
[347163474,1735534238557,-500.0,0.00012999,2]
[347163476,1735534238566,-306.20712881,0.00012999,2]
[347163478,1735534238576,-500.0,0.00012999,2]
[347163480,1735534238586,-500.0,0.00012999,2]
[347163482,1735534238595,-500.0,0.00012999,2]
[347163484,1735534238605,-500.0,0.00012999,2]
[347163486,1735534238615,-500.0,0.00012999,2]
[347163488,1735534238624,-6091.62,0.00012999,2]
[347163490,1735534238633,-952.27,0.00012999,2]
[347163492,1735534238644,-500.0,0.00012999,2]
[347163494,1735534238656,-500.0,0.00012999,2]
[347163497,1735534238665,-500.0,0.00012999,2]
[347163499,1735534238675,-500.0,0.00012999,2]
[347163501,1735534238684,-500.0,0.00012999,2]
[347163503,1735534238694,-500.0,0.00012999,2]
[347163505,1735534238704,-500.0,0.00012999,2]
[347163507,1735534238713,-500.0,0.00012999,2]
[347163509,1735534238723,-10000.0,0.00013,2]
[347163511,1735534238732,-10000.0,0.00013,2]
[347163513,1735534238741,-10000.0,0.00013,2]
[347163515,1735534238751,-10000.0,0.00013,2]
[347163517,1735534238761,-10000.0,0.00013,2]
[347163519,1735534238770,-10000.0,0.00013,2]
[347163521,1735534238783,-10000.0,0.00013,2]
[347163523,1735534238792,-420.0,0.00013144,2]
[347163525,1735534238802,-779.98,0.00013272,2]
[347163527,1735534238812,-246.13662848,0.00013272,2]
[347163529,1735534238822,-500.0,0.00013272,2]
[347163531,1735534238831,-500.0,0.00013272,2]
[347163533,1735534238841,-742.71,0.00013272,2]
[347163535,1735534238850,-500.0,0.00013272,2]
[347163537,1735534238860,-500.0,0.00013273,2]
[347163539,1735534238869,-500.0,0.00013273,2]
[347163541,1735534238879,-500.0,0.00013273,2]
[347163543,1735534238889,-2448.43,0.00013273,2]
[347163545,1735534238899,-500.0,0.00013273,2]
[347163547,1735534238909,-500.0,0.00013273,2]
[347163549,1735534238919,-500.0,0.00013273,2]
[347163552,1735534238929,-500.0,0.00013273,2]
[347163553,1735534238939,-500.0,0.00013273,2]
[347163555,1735534238949,-500.0,0.00013273,2]
[347163558,1735534238958,-500.0,0.00013273,2]
[347163560,1735534238967,-500.0,0.00013273,2]
[347163562,1735534238977,-1418.98,0.00013273,2]
[347163564,1735534238986,-666.5,0.00013273,2]
[347163566,1735534238996,-500.0,0.00013273,2]
[347163568,1735534239006,-500.0,0.00013273,2]
[347163570,1735534239016,-500.0,0.00013273,2]
[347163572,1735534239028,-500.0,0.00013273,2]
[347163574,1735534239038,-500.0,0.00013273,2]
[347163576,1735534239047,-500.0,0.00013273,2]
[347163578,1735534239057,-500.0,0.00013273,2]
[347163580,1735534239066,-500.0,0.00013273,2]
[347163582,1735534239076,-777.23,0.00013273,2]
[347163584,1735534239085,-500.0,0.00013273,2]
[347163586,1735534239095,-500.0,0.00013273,2]
[347163588,1735534239105,-500.0,0.00013273,2]
[347163590,1735534239114,-500.0,0.00013273,2]
[347163592,1735534239124,-500.0,0.00013273,2]
[347163594,1735534239133,-6091.62,0.00013273,2]
[347163596,1735534239142,-952.27,0.00013273,2]
[347163598,1735534239151,-500.0,0.00013273,2]
[347163600,1735534239161,-779.98,0.00013546,2]
[347163602,1735534239170,-500.0,0.00013546,2]
[347163604,1735534239179,-500.0,0.00013546,2]
[347163606,1735534239189,-742.71,0.00013546,2]
[347163608,1735534239198,-500.0,0.00013546,2]
[347163610,1735534239207,-213.71,0.00013547,2]
[347163612,1735534239216,-500.0,0.00013547,2]
[347163614,1735534239226,-275.75,0.00013547,2]
[347163616,1735534239235,-2448.43,0.00013547,2]
[347163618,1735534239244,-500.0,0.00013547,2]
[347163620,1735534239254,-500.0,0.00013547,2]
[347163622,1735534239263,-500.0,0.00013547,2]
[347163624,1735534239273,-500.0,0.00013547,2]
[347163626,1735534239283,-500.0,0.00013547,2]
[347163628,1735534239293,-500.0,0.00013547,2]
[347163630,1735534239302,-500.0,0.00013547,2]
[347163632,1735534239311,-500.0,0.00013547,2]
[347163634,1735534239320,-1418.98,0.00013547,2]
[347163635,1735534239329,-666.5,0.00013547,2]
[347163637,1735534239339,-500.0,0.00013547,2]
[347163639,1735534239348,-500.0,0.00013547,2]
[347163641,1735534239357,-500.0,0.00013547,2]
[347163643,1735534239366,-500.0,0.00013547,2]
[347163645,1735534239375,-500.0,0.00013547,2]
[347163647,1735534239385,-500.0,0.00013547,2]
[347163649,1735534239394,-500.0,0.00013547,2]
[347163651,1735534239403,-500.0,0.00013547,2]
[347163653,1735534239412,-777.23,0.00013547,2]
[347163655,1735534239421,-500.0,0.00013547,2]
[347163657,1735534239431,-500.0,0.00013547,2]
[347163659,1735534239441,-500.0,0.00013547,2]
[347163661,1735534239450,-238.43,0.00013547,2]
[347163663,1735534239460,-500.0,0.00013547,2]
[347163665,1735534239469,-6091.62,0.00013547,2]
[347163667,1735534239478,-477.44085538,0.00013547,2]
[347163679,1735534239582,-474.82914462,0.00013547,2]
[347163681,1735534239591,-500.0,0.00013547,2]
[347163683,1735534239600,-500.0,0.00013593,2]
[347163685,1735534239609,-500.0,0.00013593,2]
[347163687,1735534239619,-500.0,0.00013593,2]
[347163689,1735534239628,-500.0,0.00013593,2]
[347163691,1735534239637,-500.0,0.00013593,2]
[347163693,1735534239648,-500.0,0.00013594,2]
[347163695,1735534239658,-500.0,0.00013594,2]
[347163697,1735534239667,-523.50429451,0.00013594,2]
[347163699,1735534239676,-500.0,0.00013594,2]
[347163701,1735534239686,-500.0,0.00013594,2]
[347163703,1735534239696,-500.0,0.00013594,2]
[347163705,1735534239705,-500.0,0.00013594,2]
[347163707,1735534239715,-500.0,0.00013594,2]
[347163709,1735534239725,-500.0,0.00013594,2]
[347163711,1735534239734,-500.0,0.00013594,2]
[347163713,1735534239743,-500.0,0.00013594,2]
[347163715,1735534239752,-501.15531129,0.00013594,2]
[347163717,1735534239761,-500.0,0.00013594,2]
[347163719,1735534239770,-500.96150207,0.00013594,2]
[347163721,1735534239783,-500.0,0.00013594,2]
[347163723,1735534239792,-500.0,0.00013594,2]
[347163725,1735534239801,-500.0,0.00013594,2]
[347163727,1735534239811,-502.64986194,0.00013594,2]
[347163729,1735534239820,-500.0,0.00013594,2]
[347163730,1735534239829,-500.0,0.00013594,2]
[347163731,1735534239838,-500.0,0.00013594,2]
[347163733,1735534239848,-478.04794181,0.00013594,2]
[347163734,1735534239857,-500.0,0.00013594,2]
[347163735,1735534239867,-572.76431469,0.00013594,2]
[347163736,1735534239876,-500.0,0.00013594,2]
[347163737,1735534239885,-500.0,0.00013594,2]
[347163738,1735534239894,-197.58,0.00013594,2]
[347163739,1735534239904,-500.0,0.00013594,2]
[347163741,1735534239914,-500.0,0.00013594,2]
[347163743,1735534239923,-266.92551397,0.00013594,2]
[347163745,1735534239932,-500.0,0.00013594,2]
[347163746,1735534239942,-500.0,0.00013594,2]
[347163747,1735534239951,-502.43466625,0.00013595,2]
[347163748,1735534239962,-514.72353856,0.00013595,2]
[347163749,1735534239975,-510.25252442,0.00013595,2]
[347163750,1735534239988,-500.0,0.00013595,2]
[347163752,1735534239998,-500.0,0.00013595,2]
[347163754,1735534240007,-500.0,0.00013595,2]
[347163756,1735534240016,-500.0,0.00013595,2]
[347163758,1735534240027,-500.0,0.00013595,2]
[347163760,1735534240036,-500.0,0.00013595,2]
[347163762,1735534240046,-500.0,0.00013595,2]
[347163763,1735534240055,-500.0,0.00013595,2]
[347163764,1735534240064,-500.0,0.00013595,2]
[347163765,1735534240073,-500.0,0.00013595,2]
[347163766,1735534240083,-500.0,0.00013595,2]
[347163767,1735534240092,-500.0,0.00013595,2]
[347163769,1735534240101,-500.0,0.00013595,2]
[347163770,1735534240111,-500.0,0.00013595,2]
[347163771,1735534240124,-500.0,0.00013595,2]
[347163772,1735534240134,-500.0,0.00013595,2]
[347163773,1735534240143,-500.0,0.00013595,2]
[347163774,1735534240153,-500.0,0.00013595,2]
[347163775,1735534240162,-500.0922711,0.00013595,2]
[347163776,1735534240171,-500.0,0.00013595,2]
[347163777,1735534240181,-500.0,0.00013595,2]
[347163778,1735534240190,-500.0,0.00013596,2]
[347163779,1735534240200,-500.0,0.00013596,2]
[347163780,1735534240210,-500.0,0.00013698,2]
[347163781,1735534240219,-500.0,0.00013698,2]
[347163782,1735534240317,-500.0,0.00013698,2]
[347163783,1735534240327,-552.59579627,0.00013698,2]
[347163784,1735534240337,-1966.16,0.00013698,2]
[347163785,1735534240346,-1966.16,0.00013698,2]
[347163786,1735534240355,-1966.16,0.00013698,2]
[347163787,1735534240364,-641.896363,0.00013699,2]
[347163788,1735534240373,-500.0,0.00013699,2]
[347163789,1735534240382,-500.0,0.00013699,2]
[347163790,1735534240392,-500.0,0.00013699,2]
[347163791,1735534240401,-177.8660405,0.00013699,2]
[347163792,1735534240410,-252.29372802,0.00013769,2]
[347163793,1735534240419,-779.98,0.0001382,2]
[347163794,1735534240428,-500.0,0.0001382,2]
[347163795,1735534240438,-500.0,0.0001382,2]
[347163796,1735534240447,-742.71,0.0001382,2]
[347163797,1735534240456,-500.0,0.0001382,2]
[347163798,1735534240465,-274.6402662,0.00013821,2]
[347163799,1735534240474,-2448.43,0.00013821,2]
[347163800,1735534240483,-500.0,0.00013821,2]
[347163801,1735534240492,-500.0,0.00013821,2]
[347163802,1735534240501,-500.0,0.00013821,2]
[347163803,1735534240511,-500.0,0.00013821,2]
[347163804,1735534240520,-500.0,0.00013821,2]
[347163805,1735534240531,-500.0,0.00013821,2]
[347163806,1735534240541,-500.0,0.00013821,2]
[347163807,1735534240550,-500.0,0.00013821,2]
[347163808,1735534240559,-1418.98,0.00013821,2]
[347163809,1735534240568,-666.5,0.00013821,2]
[347163810,1735534240577,-500.0,0.00013821,2]
[347163811,1735534240586,-500.0,0.00013821,2]
[347163812,1735534240595,-500.0,0.00013821,2]
[347163813,1735534240604,-500.0,0.00013821,2]
[347163814,1735534240613,-500.0,0.00013821,2]
[347163815,1735534240622,-500.0,0.00013821,2]
[347163816,1735534240631,-500.0,0.00013821,2]
[347163817,1735534240641,-500.0,0.00013821,2]
[347163818,1735534240652,-777.23,0.00013821,2]
[347163819,1735534240662,-500.0,0.00013821,2]
[347163820,1735534240672,-500.0,0.00013821,2]
[347163821,1735534240681,-500.0,0.00013821,2]
[347163822,1735534240690,-1966.16,0.00013821,2]
[347163823,1735534240700,-500.0,0.00013821,2]
[347163824,1735534240708,-6091.62,0.00013821,2]
[347163825,1735534240719,-952.27,0.00013821,2]
[347163826,1735534240728,-500.0,0.00013821,2]
[347163827,1735534240737,-500.0,0.00013867,2]
[347163828,1735534240747,-500.0,0.00013867,2]
[347163829,1735534240755,-500.0,0.00013867,2]
[347163830,1735534240764,-500.0,0.00013867,2]
[347163831,1735534240773,-500.0,0.00013868,2]
[347163832,1735534240785,-500.0,0.00013868,2]
[347163833,1735534240794,-202.53,0.00013868,2]
[347163834,1735534240804,-500.0,0.00013868,2]
[347163835,1735534240813,-372.32740917,0.00013868,2]
[347163836,1735534240822,-478.34766062,0.00013868,2]
[347163837,1735534240831,-336.51,0.00013868,2]
[347163838,1735534240842,-500.0,0.00013868,2]
[347163839,1735534240851,-500.0,0.00013868,2]
[347163840,1735534240860,-500.0,0.00013868,2]
[347163841,1735534240869,-156.45390398,0.00013869,2]
[347163842,1735534240879,-500.0,0.00013869,2]
[347163843,1735534240887,-500.0,0.00013869,2]
[347163844,1735534240896,-501.88511976,0.00013869,2]
[347163845,1735534240906,-500.0,0.00013869,2]
[347163846,1735534240916,-500.0,0.00013869,2]
[347163847,1735534240925,-500.0,0.00013869,2]
[347163848,1735534240934,-500.0,0.00013869,2]
[347163849,1735534240943,-500.0,0.00013869,2]
[347163850,1735534240953,-500.0,0.00013869,2]
[347163851,1735534240962,-500.0,0.00013869,2]
[347163852,1735534240971,-500.0,0.00013869,2]
[347163853,1735534240980,-504.4683239,0.00013869,2]
[347163854,1735534240989,-628.01681434,0.00013869,2]
[347163855,1735534240999,-502.27029324,0.00013869,2]
[347163856,1735534241008,-638.93009526,0.00013869,2]
[347163857,1735534241017,-500.0,0.00013869,2]
[347163858,1735534241027,-400.0,0.00013973,2]
[347163859,1735534241037,-10000.0,0.00014,2]
[347163860,1735534241046,-779.98,0.00014094,2]
[347163861,1735534241055,-500.0,0.00014094,2]
[347163862,1735534241065,-500.0,0.00014094,2]
[347163863,1735534241074,-742.71,0.00014094,2]
[347163864,1735534241083,-500.0,0.00014094,2]
[347163865,1735534241093,-2448.43,0.00014095,2]
[347163866,1735534241102,-500.0,0.00014095,2]
[347163867,1735534241111,-500.0,0.00014095,2]
[347163868,1735534241121,-500.0,0.00014095,2]
[347163869,1735534241130,-500.0,0.00014095,2]
[347163870,1735534241139,-404.99005429,0.00014095,2]
[347163871,1735534241148,-500.0,0.00014095,2]
[347163872,1735534241158,-500.0,0.00014095,2]
[347163873,1735534241167,-500.0,0.00014095,2]
[347163874,1735534241176,-1418.98,0.00014095,2]
[347163875,1735534241185,-666.5,0.00014095,2]
[347163876,1735534241194,-500.0,0.00014095,2]
[347163877,1735534241204,-500.0,0.00014095,2]
[347163878,1735534241212,-500.0,0.00014095,2]
[347163879,1735534241222,-500.0,0.00014095,2]
[347163880,1735534241232,-500.0,0.00014095,2]
[347163881,1735534241241,-567.71972979,0.00014095,2]
[347163882,1735534241250,-500.0,0.00014095,2]
[347163883,1735534241259,-500.0,0.00014095,2]
[347163884,1735534241269,-777.23,0.00014095,2]
[347163885,1735534241280,-500.0,0.00014095,2]
[347163886,1735534241290,-500.0,0.00014095,2]
[347163887,1735534241299,-500.0,0.00014095,2]
[347163888,1735534241308,-1966.16,0.00014095,2]
[347163889,1735534241317,-500.0,0.00014095,2]
[347163890,1735534241326,-6091.62,0.00014095,2]
[347163891,1735534241335,-952.27,0.00014095,2]